Cogmind - Beta 14 @@@ ROGUE MODE // 2024.09.19 @ 16:23:22 Player: Duduxx Result: Destroyed by Y-45 Defender with Heavy Assault Rifle Performance ------------- Evolutions (2) 1000 Regions Visited (5) 1000 Robots Destroyed (54) 270 Value Destroyed (1528) 1528 Prototype IDs (4) 80 Alien Tech Used (0) 0 Bonus (90) 90 TOTAL SCORE: 3968 Bonus ------- High Alert Combat Kills 108 Friendly Fire -18 Cogmind --------- Core Integrity 0/550 Matter 286/300 Energy 97/100 System Corruption 6% Temperature Cool (45) Movement Core (100) Ox1 Location -8/Materials Parts ------- > --- POWER (1) -------- (None) > --- PROPULSION (3) --- (None) > --- UTILITY (5) ------ (None) > --- WEAPON (2) ------- Enhanced Autogun Scythe > --- INVENTORY (5) ---- Light Nuclear Core Small Storage Unit Improved Datajack Peak State ------------ > --- POWER ------------ Light Nuclear Core > --- PROPULSION ------- Gravmag System Gravmag System Gravmag System > --- UTILITY ---------- Heat Sink Small Storage Unit Core Shielding Hardened Medium Armor Plating Hacking Suite > --- WEAPON ----------- Field Laser Proton Missile Launcher > --- INVENTORY -------- Light Nuclear Core Gravmag System Improved Medium Laser Proton Missile Launcher Improved Datajack Mining Laser Katana [Rating: 33] Favorites ----------- Power Light Ion Engine Engine Light Ion Engine Power Core Light Nuclear Core Propulsion Light Treads Treads Light Treads Leg Aluminum Leg Wheel Wheel Hover Unit Gravmag System Utility Small Storage Unit Device Heat Sink Storage Small Storage Unit Hackware Hacking Suite Protection Light Armor Plating Weapon Improved Medium Laser Energy Gun Improved Medium Laser Ballistic Gun Assault Rifle Launcher Rocket Launcher Special Weapon Mining Laser Slashing Weapon Katana Special Melee Weapon Improved Datajack Build | -11 -10 -10 -9 -9 -8 ------- Run | Yrd Mat Min Mat Min Mat Slots Evolved 4 | . . . 2 . 2 Power . | . . . . . . Propulsion 1 | . . . . . 1 Utility 3 | . . . 2 . 1 Weapon . | . . . . . . Parts Attached 50 | 6 1 . 7 4 32 Power 5 | 1 . . . 1 3 Engine 2 | 1 . . . 1 . Core 3 | . . . . . 3 Reactor . | . . . . . . Propulsion 14 | 2 . . 1 . 11 Treads 3 | 2 . . 1 . . Leg 1 | . . . . . 1 Wheel 6 | . . . . . 6 Hover 4 | . . . . . 4 Flight . | . . . . . . Utility 10 | 1 1 . 3 3 2 Device 2 | . 1 . 1 . . Storage 1 | 1 . . . . . Processor . | . . . . . . Hackware 1 | . . . 1 . . Protection 6 | . . . 1 3 2 Artifact . | . . . . . . Weapon 21 | 2 . . 3 . 16 Energy Gun 6 | . . . 2 . 4 Energy Cannon . | . . . . . . Ballistic Gun 4 | 2 . . . . 2 Ballistic Cannon . | . . . . . . Launcher 6 | . . . 1 . 5 Special Weapon 2 | . . . . . 2 Impact Weapon . | . . . . . . Slashing Weapon 2 | . . . . . 2 Piercing Weapon . | . . . . . . Special Melee Weapon 1 | . . . . . 1 Unidentified Prototypes 2 | . . . 1 . 1 Corrupted Parts 2 | . . . . . 2 System Corruption 6 | . . . . . 6 Parts Lost 26 | . . . . 2 24 Power 4 | . . . . 1 3 Propulsion 8 | . . . . 1 7 Utility 5 | . . . . . 5 Weapon 9 | . . . . . 9 Highest Loss Streak 14 | . . . . 1 14 To Critical Strikes 1 | . . . . 1 . Average Slot Usage (%) 87 | . 87 100 94 97 74 Engine 8 | . 14 14 11 11 2 Core 1 | . . . . . 4 Treads 15 | . 28 28 22 19 . Wheel 3 | . . . . . 10 Hover 2 | . . . . . 6 Device 12 | . 2 14 19 11 7 Storage 10 | . 14 14 11 11 8 Hackware 4 | . . . 1 11 8 Protection 7 | . . . 6 10 10 Energy Gun 10 | . . . 17 11 9 Ballistic Gun 4 | . 28 28 . . . Launcher 3 | . . . 4 11 2 Peak Build Rating 33 | 6 7 7 15 15 33 Average Rating 13 | 4 6 7 13 14 18 On Entrance 8 | . 6 7 7 15 14 Naked Turns . | . . . . . . Heaviest Build 26 | 12 13 13 20 21 26 Greatest Support 40 | 40 40 40 40 40 32 Greatest Overweight (x) 8 | 2 . . . 1 8 Average Overweight (x) . | . . . . . . Largest Inventory Capacity 8 | 8 8 8 8 8 8 Average Capacity 7 | 7 8 8 8 8 7 Most Carried 8 | . 1 4 8 8 8 Average Carried 5 | . . 2 7 7 5 Final Capacity 8 | 8 8 8 8 8 5 Final Carried 8 | . 1 4 8 8 3 Class Distribution -------------------- 70% | Mutant 29% | Scavenger-Mutant Dominant Class ---------------- Mutant | -10/Materials Mutant | -10/Mines Mutant | -9/Materials Mutant | -9/Mines Scavenger-Mutant | -8/Materials Resources | -11 -10 -10 -9 -9 -8 ----------- Run | Yrd Mat Min Mat Min Mat Matter Collected 821 | 156 . 148 88 78 351 Remotely . | . . . . . . Salvage Created 1886 | . 25 . 533 209 1119 Parts 99 | . 3 . 34 9 53 Haulers Intercepted 2 | . . . 1 . 1 Recyclers Shooed 3 | . . . 1 1 1 Parts Field Recycled . | . . . . . . Retrieved Matter . | . . . . . . Parts Self-Destructed . | . . . . . . Prevented . | . . . . . . Kills | -11 -10 -10 -9 -9 -8 ------- Run | Yrd Mat Min Mat Min Mat Combat Hostiles Destroyed 39 | . . . 12 6 21 Melee 3 | . . . . . 3 Guns 22 | . . . 8 3 11 AOE 12 | . . . 2 3 7 Classes Destroyed 11 | . 1 . 5 1 4 Worker 3 | . . . . . 3 Builder 1 | . . . . . 1 Hauler 2 | . . . 1 . 1 Recycler 3 | . . . . 1 2 Operator 2 | . . . 2 . . Watcher 4 | . 1 . 1 . 2 Swarmer 12 | . . . 4 4 4 Grunt 19 | . . . 3 2 14 Brawler 1 | . . . . . 1 Duelist 1 | . . . . . 1 Sentry 6 | . . . 5 . 1 Best Kill Streak 4 | . 1 . 4 4 4 Combat Bots Only 4 | . . . 4 4 4 Max Kills in Single Turn 3 | . 1 . 1 2 3 Gunslinging . | . . . . . . Exploded 3 | . . . 1 2 3 Melee 1 | . . . . . 1 Uniques/NPCs Destroyed . | . . . . . . Combat | -11 -10 -10 -9 -9 -8 -------- Run | Yrd Mat Min Mat Min Mat Hostile Shots Fired 297 | . . 4 49 40 204 Missed 84 | . . . 14 7 63 Damage Taken 3363 | . . 61 400 443 2459 Core 752 | . . . 83 112 557 Absorbed by Shields . | . . . . . . Redirected to Shielding 68 | . . . . 18 50 Core Remaining (%) 83 | 100 . 100 . 51 . Volleys Fired 150 | . 1 5 41 19 84 Largest 2 | . 2 2 2 2 2 Hottest 119 | . 40 40 112 89 119 Shots Fired 223 | . 2 10 74 22 115 Gun 205 | . 2 10 71 19 103 Cannon . | . . . . . . Launcher 17 | . . . 3 3 11 Special 1 | . . . . . 1 Kinetic 29 | . 2 10 . . 17 Thermal 177 | . . . 71 19 87 Explosive 13 | . . . 3 3 7 Electromagnetic 4 | . . . . . 4 Robot Hit Streak 17 | . 1 3 13 2 17 Robot Miss Streak 5 | . . 2 5 3 3 Penetration Max . | . . . . . . Secondary Targets 3 | . . . 2 . 1 Max Gunslinging Chain 1 | . . . 1 . 1 Shots Hit Robots 150 | . 1 5 44 10 90 Core Hits 85 | . 1 2 17 9 56 Critical Kills . | . . . . . . Critical Parts Destroyed . | . . . . . . Critical Strikes 12 | . . . 4 3 5 Burn 11 | . . . 4 3 4 Sever 1 | . . . . . 1 Melee Attacks 20 | . . . . . 20 Impact . | . . . . . . Slashing 20 | . . . . . 20 Piercing . | . . . . . . Sneak Attacks 2 | . . . . . 2 Combat Hostiles . | . . . . . . Follow-up Attacks . | . . . . . . Damage Inflicted 3985 | . 14 57 830 318 2766 Guns 2162 | . 12 57 736 189 1168 Cannons . | . . . . . . Explosions 1198 | . . . 78 127 993 Melee 532 | . . . . . 532 Ramming 69 | . 2 . 16 2 49 Kinetic 262 | . 12 57 . . 193 Thermal 1924 | . . . 736 189 999 Explosive 854 | . . . 78 127 649 Electromagnetic 344 | . . . . . 344 Impact . | . . . . . . Slashing 532 | . . . . . 532 Piercing . | . . . . . . Highest Corruption 6 | . . . . . 6 Average Corruption 4 | . . . . . 4 Corruption Purged . | . . . . . . Corruption Blocked . | . . . . . . Effects 2 | . . . . . 2 Message Errors 1 | . . . . . 1 Matter Fused 1 | . . . . . 1 Overload Shots . | . . . . . . Overflow Damage 77 | . . . . . 77 Projectiles . | . . . . . . Explosions 63 | . . . . . 63 Melee 14 | . . . . . 14 Knockbacks 2 | . . . 1 . 1 Impact 2 | . . . 1 . 1 Kinetic . | . . . . . . Secondary . | . . . . . . Self-Inflicted Damage 235 | . . . . 35 200 Shots 7 | . . . . 1 6 Rammed 13 | . 1 . 6 1 5 Targets Rammed 27 | . 1 . 6 2 18 Kicked 13 | . . . . . 13 Crushed 1 | . . . . 1 . Highest Temperature 352 | . . . 171 4 352 Average Temperature 67 | . . . 41 3 89 Received Heat Transfer 1602 | . . 33 99 165 1305 Effects 4 | . . . . . 4 Energy Bleed 1 | . . . . . 1 Interference 3 | . . . . . 3 Siege Activations . | . . . . . . Robots Corrupted . | . . . . . . Combat Hostiles . | . . . . . . Parts Fried . | . . . . . . Impact Corruptions . | . . . . . . Robots Melted 2 | . . . 2 . . Combat Hostiles 2 | . . . 2 . . Parts Melted 17 | . . . 10 2 5 Heat Transferred 5008 | . . . 1887 629 2492 Parts Sabotaged . | . . . . . . Parts Stolen . | . . . . . . Parts Stripped . | . . . . . . Power Chain Reactions . | . . . . . . Alert | -11 -10 -10 -9 -9 -8 ------- Run | Yrd Mat Min Mat Min Mat Peak Influence 718 | . 7 2 276 286 718 Initial 111 | . . 2 . 107 111 Average 211 | . 4 2 154 175 396 Maximum Alert Level 3 | . . . 1 1 3 Low Security (%) 49 | 100 100 100 56 76 3 Level 1 37 | . . . 43 23 57 Level 2 13 | . . . . . 38 Level 3 . | . . . . . 1 Level 4 . | . . . . . . Level 5 . | . . . . . . High Security . | . . . . . . Max Security . | . . . . . . Squads Dispatched 5 | . . . 2 . 3 Investigation 3 | . . . 1 . 2 Extermination . | . . . . . . Reinforcement 2 | . . . 1 . 1 Assault . | . . . . . . Garrison . | . . . . . . Intercept . | . . . . . . Searches Triggered . | . . . . . . Construction Impeded 1 | . . . . . 1 Haulers Reinforced . | . . . . . . Active Scanning Responses . | . . . . . . Cargo Convoy Interrupts . | . . . . . . Stealth | -11 -10 -10 -9 -9 -8 --------- Run | Yrd Mat Min Mat Min Mat Distress Signals 4 | . . . 1 . 3 Communications Jammed . | . . . . . . Distress Signals . | . . . . . . Times Spotted 89 | . 1 4 19 9 56 Peak Tracking Total 7 | . 1 2 5 4 7 Tactical Retreats 11 | . . . . . 11 Traps | -11 -10 -10 -9 -9 -8 ------- Run | Yrd Mat Min Mat Min Mat Traps Triggered 1 | . . . 1 . . Indirectly . | . . . . . . Trap Hack Attempts . | . . . . . . Triggered . | . . . . . . Disarmed . | . . . . . . Reprogrammed . | . . . . . . Reused . | . . . . . . Traps Extracted . | . . . . . . Installed . | . . . . . . Triggered . | . . . . . . Machines | -11 -10 -10 -9 -9 -8 ---------- Run | Yrd Mat Min Mat Min Mat Machines Disabled 8 | . . . 2 2 4 Max in Single Turn 1 | . . . 1 1 1 Machines Repaired . | . . . . . . Machines Dismantled . | . . . . . . Machines Sabotaged . | . . . . . . Overloaded Fab Kills . | . . . . . . Hacking | -11 -10 -10 -9 -9 -8 --------- Run | Yrd Mat Min Mat Min Mat Machines Accessed 7 | . . . 5 . 2 Terminals 5 | . . . 4 . 1 Fabricators . | . . . . . . Repair Stations . | . . . . . . Recycling Units . | . . . . . . Scanalyzers 2 | . . . 1 . 1 Garrison Access . | . . . . . . Total Hacks 19 | . . . 13 . 6 Successful 8 | . . . 5 . 3 Failed 11 | . . . 8 . 3 Catastrophic 3 | . . . 2 . 1 Database Lockouts . | . . . . . . Manual 7 | . . . 4 . 3 Terminals 11 | . . . 8 . 3 Fabricators . | . . . . . . Repair Stations . | . . . . . . Recycling Units . | . . . . . . Scanalyzers 8 | . . . 5 . 3 Garrison Access . | . . . . . . Terminal Hacks 1 | . . . 1 . . Prototype ID Bank 1 | . . . 1 . . Fabricator Hacks . | . . . . . . Repair Station Hacks . | . . . . . . Recycling Unit Hacks . | . . . . . . Scanalyzer 7 | . . . 4 . 3 Insert Component 4 | . . . 2 . 2 Analyze 3 | . . . 2 . 1 Garrison Access Hacks . | . . . . . . Unauthorized Hacks . | . . . . . . Terminals . | . . . . . . Fabricators . | . . . . . . Repair Stations . | . . . . . . Recycling Units . | . . . . . . Scanalyzers . | . . . . . . Garrison Access . | . . . . . . Data Cores Recovered 1 | . . . 1 . . Used . | . . . . . . Hacking Detections 6 | . . . 4 . 2 Full Trace Events 2 | . . . . . 2 Feedback Events . | . . . . . . Feedback Blocked . | . . . . . . Robot Schematics Acquired . | . . . . . . Robots Built . | . . . . . . Authchips . | . . . . . . Time . | . . . . . . Total Robot Build Rating . | . . . . . . Part Schematics Acquired 3 | . . . 2 . 1 Parts Built . | . . . . . . Authchips . | . . . . . . Time . | . . . . . . Total Part Build Rating . | . . . . . . Parts Repaired . | . . . . . . Time . | . . . . . . Parts Recycled . | . . . . . . Recycled Matter . | . . . . . . Retrieved Matter . | . . . . . . Retrieved Components . | . . . . . . Parts Scanalyzed 3 | . . . 2 . 1 Part Schematics Acquired 3 | . . . 2 . 1 Parts Damaged 1 | . . . 1 . . Bothacking | -11 -10 -10 -9 -9 -8 ------------ Run | Yrd Mat Min Mat Min Mat Used RIF Installer . | . . . . . . Robots Hacked . | . . . . . . Non-combat . | . . . . . . Combat . | . . . . . . Robot Hacks Applied . | . . . . . . Relay Couplers Released . | . . . . . . Fabnet Peak Effective % . | . . . . . . Robots Rewired . | . . . . . . Allies Hacked . | . . . . . . Hacks Repelled . | . . . . . . Allies | -11 -10 -10 -9 -9 -8 -------- Run | Yrd Mat Min Mat Min Mat Total Allies . | . . . . . . Largest Group . | . . . . . . Highest-Rated Group . | . . . . . . Highest-Rated Ally . | . . . . . . Total Orders . | . . . . . . Ally Attacks . | . . . . . . Total Damage . | . . . . . . Kills . | . . . . . . Allies Corrupted . | . . . . . . Allies Melted . | . . . . . . Intel | -11 -10 -10 -9 -9 -8 ------- Run | Yrd Mat Min Mat Min Mat Robot Analysis Total . | . . . . . . Derelict Logs Recovered . | . . . . . . Drone Launches . | . . . . . . Drone Recoveries . | . . . . . . Exploration | -11 -10 -10 -9 -9 -8 ------------- Run | Yrd Mat Min Mat Min Mat Turns Passed 2329 | 61 196 179 778 323 792 Spaces Moved 1261 | 36 119 100 391 156 459 Core 129 | 9 . . . . 120 Treads 802 | 27 119 100 391 156 9 Legs 11 | . . . . . 11 Wheels 232 | . . . . . 232 Hover 87 | . . . . . 87 Flight . | . . . . . . Fastest Speed 50 | 50 160 160 160 160 50 Average Speed 136 | 147 160 160 160 175 90 Slowest Speed 450 | 160 160 160 160 240 450 Overloaded Moves . | . . . . . . Propulsion Burnouts . | . . . . . . Robots Hopped . | . . . . . . Cave-ins Triggered . | . . . . . . Exploration Rate (%) 27 | 4 29 20 35 42 34 Regions Visited 5 Branch Regions 2 Pre-discovered Areas . | . . . . . . Known Exits Taken . | . . . . . . Unknown Exits Taken 5 | 1 1 1 1 1 . Scrap Searched 2 | . . 1 . 1 . Spaces Dug . | . . . . . . Terrain Destroyed 91 | . . . 16 32 43 Melee . | . . . . . . Projectile . | . . . . . . AOE 91 | . . . 16 32 43 Terrain Rammed . | . . . . . . Walls Destroyed . | . . . . . . Machines Disabled . | . . . . . . Actions | -11 -10 -10 -9 -9 -8 --------- Run | Yrd Mat Min Mat Min Mat Total 1611 | 41 122 109 471 184 684 Wait 49 | . . 2 2 . 45 Move 1256 | 35 118 99 390 155 459 Hop . | . . . . . . Pick Up 27 | . 1 3 12 . 11 Fast Attach 27 | 6 1 . 4 3 13 Attach 16 | . . . 1 1 14 Detach 9 | . . . 2 2 5 Swap 7 | . . . 2 . 5 Drop 23 | . . . 11 2 10 Fire 150 | . 1 5 41 19 84 Melee 20 | . . . . . 20 Ram 5 | . . . . . 5 Kick 13 | . . . . . 13 Crush 9 | . 1 . 6 2 . Escape Stasis . | . . . . . . Rewire . | . . . . . . Trap . | . . . . . . Miscellaneous . | . . . . . . Route ------- -11/Scrapyard -10/Materials -10/Mines -9/Materials -9/Mines (discovered 2 exits: *Mat x2) -8/Materials History --------- Turn | Location | Event 2 | -11/Scrapyard | Met Revision 17 19 | -11/Scrapyard | Discovered new exit (range 16) 62 | -11/Scrapyard | Entered Materials 190 | -10/Materials | Discovered new exit (range 15) 258 | -10/Materials | Entered Mines 267 | -10/Mines | Assembled infested the area 292 | -10/Mines | Found DCF Scrap (11 items) 303 | -10/Mines | Build established: Mutant 317 | -10/Mines | Met 8R-AWN 385 | -10/Mines | Discovered new exit (range 7) 437 | -10/Mines | Entered Materials 437 | -9/Materials | Evolved 2 slots: Utility x2 1201 | -9/Materials | Discovered new exit (range 9) 1215 | -9/Materials | Entered Mines 1376 | -9/Mines | Joined a pair of Derelicts in attacking an 0b10 outpost 1524 | -9/Mines | Discovered new exit (range 13) 1524 | -9/Mines | Discovered new exit (range 7) 1538 | -9/Mines | Entered Materials 1538 | -8/Materials | Evolved 2 slots: Propulsion x1, Utility x1 1767 | -8/Materials | Lost 3 parts (1p2w) 1952 | -8/Materials | Build established: Scavenger-Mutant 2066 | -8/Materials | Lost 3 parts (1p2w) 2211 | -8/Materials | Core integrity fell below 50% 2277 | -8/Materials | Core integrity fell below 20% 2304 | -8/Materials | Lost 14 parts (1p5n3u5w) 2330 | -8/Materials | Destroyed by Y-45 Defender with Heavy Assault Rifle Last Messages --------------- 02269_ M-13 Machinist resupplies. 02269_ K-01 Serf collects debris. 02270_ G-47 Trooper misfires. 02271_ K-01 Serf collects debris. 02273_ Proton Missile Launcher destroyed. 02274_ K-01 Serf collects debris. 02275_ U-05 Engineer lays Concrete. 02276_ K-01 Serf collects debris. 02277_ R-06 Scavenger collects Corrupted Tractor Beam. 02277_ U-05 Engineer lays Concrete. 02281_ Acquired Scythe. 02296_ System corrupted: Matter fused (-7). 02315_ Sneak attack on A-02 Transporter. 02321_ A-02 Transporter destroyed. 02324_ Acquired 42 matter. 02325_ Acquired Prototype Ballistic Gun. 02326_ Identified Enh. Autogun. 02326_ G-47 Trooper misfires. 02327_ Critical hit (Burn: +37). Map ----- +----------------------------------------------------+ | ?????????????????????????????????????????????????? | | ?????????????????????????????????????????????????? | | ?????????????????????????????????????????????????? | | ?????????????????????????????????????????????????? | | ##+??????????????????????????????????????????????? | | ????????????????????????????????????????????? | | ????????????????????????????????????????????? | | ?????????????????????#?????????????????????? | | ! ???????????????????## ?????????????????????? | | ?????????????#???? ?????????????????????? | | * ??????????????# "T" ?????????????????????? | | % ????????????????? ?????????????????????? | | ??????????????????? """ ""?????????????????????? | | ??????????????????????""" "??????????????????????? | | ??????????????????????""" "??????????????????????? | | ??????????????????????? ???????????????????????? | | ????????????????? ??? ???????????????????????? | | ????????????????# ???#+#???????????????????????? | | ????????????????# #??# #???????????????????????? | | ??????????????? # #??# #???????????????????????? | | ????????????????/ #??# #???????????????????????? | | ????????????????# #??# #???????????????????????? | | ????????????????# #??#Y############????????????? | | ????????????????# #??# %[Y #????????????? | | ????????????????# #??#![=# """ T #????????????? | | ????????????????# ####g@ # """ #????????????? | | ????????????????# # """ #????????????? | | ????????????????# + #????????????? | | ????????????????# # """ #????????????? | | ##########??????# g # """ ?????????????? | | ! ######## #* """ ?????????????? | | + gg # ?#????????????? | | """ """ # g######## ###### #??????????????? | | """""""" # #??????# #??????#??????????????? | | """"" " + #??????# #?????????????????????? | | ######## #??????# #?????????????????????? | | ##########??????# #??????# #?????????????????????? | | #?????????# #??????# ?????????????????????? | | T #?????????# #??????#+#?????????????????????? | | #?????????# #??????????????????????????????? | | [ #?????????# #??????????????????????????????? | | %%%*=#?????????? ???????????????????????????????? | | ##+#######??????? ???????????????????????????????? | | %= + ???? ???????????????????????????????? | | ## #??????? ???????????????????????????????? | | ?# #??????? ???????????????????????????????? | | ?# +??????? ???????????????????????????????? | | ?# #??????? ???????????????????????????????? | | ?# ##+##### #??????????????????????????????? | | ?# #??????????????????????????????? | +----------------------------------------------------+ Best States ------------- Heat Dissipation 41 Energy Generation 14 Energy Capacity 250 Matter Stores 300 Matter Capacity 300 Sight Range 16 Terrain Scan Range 14 Terrain Scan Density 10 Armor Coverage 225 Core Shielding 20 Power Shielding 33 Evasion (%) 55 Recoil Reduction 2 Offensive Hacking 10 Item Schematics ----------------- Imp. Heat Sink | -9/Materials | Scanalyzed Lgt. Nuclear Core | -9/Materials | Scanalyzed Missile Launcher | -8/Materials | Scanalyzed Robot Schematics ------------------ None Fabricated ------------ Nothing Alien Tech Used ----------------- None Achievements -------------- None Challenges ------------ None Game ------ Seed ChargeWeightBay Manual? 0 Play Time 00:28:57 Cumulative 56.2 hours Start 2024.09.19 @ 04:06:03 End 2024.09.19 @ 16:23:22 Sessions 3 Manual Loads 0 Difficulty Rogue Special Mode None Game No. 124 Rogue 124 Adventurer 0 Explorer 0 Win Type - Total 0 Types 0/0/0/0/0/0/0/0/0 Lore% 17 Gallery% 34 Achievement% 27 Wizard Run 0 Options --------- Layout 1 ASCII 0 Keyboard 1 Movement Arrows Keybinds 0 Fullscreen 1 Font 24/Smallcaps Map View 50x35 Zoom Use 0% Tactical HUD 1 Map Filters NONE Filters NONE Steam 1 RUN: 52aa432c-0d6e-4da5-9a1a-bd312726c566